fUST/lending_fUST_20240909
["ID","MTS","AMOUNT","RATE_DAILY","PERIOD"]
[337581993,1725856160167,-14496.0790402,0.00035978,2]
[337581994,1725856160190,-641.82724953,0.00038,10]
[337581995,1725856160211,-276.4791115,0.00038105,2]
[337581996,1725856160233,-2843.60806375,0.00038575,7]
[337581997,1725856160254,-151.0,0.00038575,120]
[337581998,1725856160276,-618.29,0.00040856,3]
[337581999,1725856160296,-152.19,0.00040856,3]
[337582000,1725856160318,-309.15,0.00040856,3]
[337582001,1725856160342,-761.0,0.00040856,3]
[337582002,1725856160363,-154.57,0.00040856,3]
[337582003,1725856160384,-1000.0,0.00040865,30]
[337582004,1725856163514,2702.86311479,0.00040766,28]
[337582005,1725856166819,182.63,0.00040856,3]
[337582006,1725856167534,463.75,0.00040856,3]
[337582007,1725856188041,1075.56,0.00040866,30]
[337582008,1725856211636,450.01066364,0.00040766,2]
[337582009,1725856213599,450.01066363,0.00041712,2]
[337582075,1725856231918,-270.0,0.00040866,8]
[337582077,1725856231929,-777.21271139,0.00040866,2]
[337582079,1725856231942,-650.74765874,0.00040866,2]
[337582080,1725856231955,-1092.18472264,0.00040866,2]
[337582096,1725856233651,499.86012,0.00040865,31]
[337582148,1725856238111,-3000.0,0.00040866,2]
[337582178,1725856239929,-9896.33715174,0.00040866,2]
[337582179,1725856239939,-47876.32724416,0.00040866,2]
[337582180,1725856239984,-72936.51226996,0.00040866,2]
[337582181,1725856239994,-17975.57786088,0.00040866,2]
[337582182,1725856240004,-25464.36952443,0.00040866,2]
[337582183,1725856240014,-794.75020699,0.00040866,2]
[337582184,1725856240024,-4044.88222653,0.00040866,2]
[337582185,1725856240034,-1093.4191892,0.00040866,2]
[337582186,1725856240043,-2702.86311474,0.0004209,28]
[337582188,1725856240053,-1236.58,0.00042226,3]
[337582189,1725856240064,-618.3,0.00042226,3]
[337582190,1725856240080,-309.14,0.00042226,3]
[337582191,1725856240090,-450.01066363,0.00042658,2]
[337582192,1725856240100,-153.7851849,0.00043288,2]
[337582193,1725856240110,-153.0,0.00043288,2]
[337582194,1725856240119,-153.0,0.00043288,2]
[337582195,1725856240129,-153.0,0.00043288,2]
[337582196,1725856240138,-208.2062936,0.00043288,2]
[337582197,1725856240151,-2702.86311474,0.00043415,28]
[337582198,1725856240161,-450.01066363,0.00043604,2]
[337582199,1725856240172,-607.32260642,0.00043834,31]
[337582200,1725856240182,-180.84201443,0.00043834,31]
[337582201,1725856240191,-500.0,0.00043835,120]
[337582202,1725856240200,-500.0,0.00043835,120]
[337582203,1725856240209,-500.0,0.00043835,120]
[337582204,1725856240218,-500.0,0.00043835,120]
[337582205,1725856240228,-500.0,0.00043835,120]
[337582206,1725856240238,-500.0,0.00043835,120]
[337582207,1725856240248,-500.0,0.00043835,120]
[337582208,1725856240257,-500.0,0.00043835,120]
[337582209,1725856240267,-500.0,0.00043835,120]
[337582210,1725856240276,-500.0,0.00043835,120]
[337582211,1725856240286,-500.0,0.00043835,120]
[337582212,1725856240295,-500.0,0.00043835,120]
[337582213,1725856240304,-500.0,0.00043835,120]
[337582214,1725856240314,-163.69708801,0.00043835,120]
[337582215,1725856240323,-902.5,0.00043836,120]
[337582216,1725856240333,-150.112233,0.000441,8]
[337582217,1725856240342,-208.2062936,0.0004411,2]
[337582218,1725856240353,-150.112233,0.000445,5]
[337582219,1725856240362,-461.45266637,0.00044536,42]
[337582220,1725856240372,-450.01066363,0.0004455,2]
[337582221,1725856240381,-2697.94231556,0.0004459,61]
[337582222,1725856240391,-35264.77671824,0.0004459,120]
[337582328,1725856243015,-14672.25478498,0.0004459,120]
[337582338,1725856243097,-112.00468907,0.0004459,120]
[337582612,1725856251769,2217.7602858,0.0004086,30]
[337582613,1725856285163,953.21544564,0.0004,30]
[337582614,1725856484168,192.983736,0.00031816,2]
[337582615,1725856484367,192.983736,0.00031896,2]
[337582616,1725856484579,192.983736,0.00031975,2]
[337582619,1725856750194,6080.60218878,0.00032,2]
[337582620,1725856786780,10000.0,0.00031,2]
[337582621,1725856805602,10000.0,0.00031,2]
[337582622,1725856839940,3941.0,0.00031,2]
[337582624,1725857086388,1059.0,0.00031,2]
[337582627,1725857204145,-545.23456824,0.00031,2]
[337582628,1725857276671,361.24811935,0.0003002,2]
[337582629,1725857308322,2989.83,0.0004087,30]
[337582642,1725857366080,-230.9289806,0.00032802,2]
[337582643,1725857366101,-1371.7379445,0.00035138,2]
[337582644,1725857366121,-671.5034,0.0003723,30]
[337582645,1725857366141,-200.29,0.00037588,7]
[337582646,1725857366162,-400.0,0.00039999,30]
[337582647,1725857366183,-223.0,0.0004,2]
[337582648,1725857366203,-153.9535115,0.0004,120]
[337582898,1725857438125,-400.0,0.00039999,30]
[337582900,1725857438135,-2892.00255182,0.0004,120]
[337582906,1725857438183,-16954.04393668,0.0004,120]
[337582908,1725857438194,-197.4,0.00040868,30]
[337582910,1725857438204,-4000.0,0.00040868,30]
[337582912,1725857438214,-160.0,0.0004087,30]
[337582914,1725857438224,-264.83196956,0.00041096,2]
[337582916,1725857438234,-179.9930984,0.00041096,2]
[337582918,1725857438244,-500.0,0.00041579,31]
[337582920,1725857438253,-500.0,0.00041579,7]
[337582922,1725857438262,-500.0,0.00041579,31]
[337582924,1725857438272,-500.0,0.00041579,7]
[337582926,1725857438282,-500.0,0.00041579,31]
[337582928,1725857438291,-500.0,0.00041579,7]
[337582930,1725857438300,-500.0,0.00041579,31]
[337582931,1725857438309,-546.44965691,0.00041579,7]
[337582933,1725857438318,-500.0,0.00041579,31]
[337582935,1725857438328,-500.0,0.00041579,7]
[337582937,1725857438337,-509.1465718,0.00041579,31]
[337582938,1725857438347,-500.0,0.00041579,31]
[337582940,1725857438357,-500.0,0.00041579,7]
[337582942,1725857438367,-500.0,0.00041579,31]
[337582944,1725857438376,-500.0,0.00041579,7]
[337582946,1725857438385,-500.0,0.00041579,31]
[337582947,1725857438394,-500.0,0.00041579,7]
[337582949,1725857438402,-500.0,0.00041579,31]
[337582950,1725857438414,-500.0,0.00041579,31]
[337582952,1725857438424,-500.0,0.00041579,7]
[337582954,1725857438435,-500.0,0.00041579,31]
[337582955,1725857438445,-195.13512882,0.00041579,31]
[337582956,1725857438454,-500.0,0.00041579,7]
[337582957,1725857438464,-500.0,0.00041579,31]
[337582958,1725857438474,-287.8904163,0.00041579,7]
[337582959,1725857438483,-500.0,0.00041579,31]
[337582960,1725857438494,-500.0,0.00041579,7]
[337582961,1725857438505,-431.85657928,0.00041579,31]
[337582962,1725857438514,-500.0,0.00041579,7]
[337582963,1725857438523,-500.0,0.00041579,7]
[337582964,1725857438532,-500.0,0.00041579,31]
[337582965,1725857438541,-500.0,0.00041579,7]
[337582966,1725857438550,-500.0,0.00041579,7]
[337582967,1725857438562,-355.78476287,0.00041579,31]
[337582968,1725857438572,-500.0,0.00041579,31]
[337582969,1725857438583,-405.91239707,0.00041579,7]
[337582970,1725857438595,-469.1903503,0.00041579,7]
[337582971,1725857438614,-500.0,0.00041579,7]
[337582972,1725857438622,-395.31640319,0.00041579,31]
[337582973,1725857438631,-49000.0,0.0004158,120]
[337582974,1725857438640,-616.2,0.00041998,30]
[337582975,1725857438649,-3078.62593819,0.00042008,2]
[337582976,1725857438660,-655.39,0.00042211,3]
[337582977,1725857438668,-546.16,0.00042211,3]
[337582978,1725857438677,-455.13,0.00042211,3]
[337582979,1725857438687,-334.77621224,0.0004222,31]
[337582980,1725857438698,-352.21730235,0.0004222,31]
[337582981,1725857438707,-500.0,0.0004222,31]
[337582982,1725857438717,-491.48910693,0.0004222,31]
[337582983,1725857438726,-500.0,0.0004222,31]
[337582984,1725857438736,-500.0,0.0004222,31]
[337582985,1725857438745,-500.0,0.0004222,31]
[337582986,1725857438754,-159.66101482,0.0004222,31]
[337582987,1725857438763,-11287.35267866,0.00042221,5]
[337582988,1725857438785,-103559.31193934,0.00042221,5]
[337582989,1725857438796,-3078.62593817,0.00042231,2]
[337582990,1725857438805,-16333.5686837,0.00042258,5]
[337582991,1725857438814,-3078.62593817,0.00042454,2]
[337582992,1725857438824,-4637.6738011,0.00042523,61]
[337582993,1725857438834,-114846.664618,0.00042523,5]
[337582994,1725857438845,-16333.5686837,0.00042523,5]
[337582995,1725857438855,-3078.62593817,0.00042677,2]
[337582996,1725857438865,-150.112233,0.000429,8]
[337582997,1725857438876,-3078.62593817,0.000429,2]
[337582998,1725857438885,-114846.664618,0.0004298,5]
[337582999,1725857438896,-194.78,0.0004298,120]
[337583000,1725857438906,-6344.07832579,0.0004298,5]
[337583001,1725857438918,-26323.05904151,0.0004298,5]
[337583002,1725857438928,-16333.5686837,0.0004299,5]
[337583003,1725857438940,-61217.16,0.00043,120]
[337583004,1725857438950,-2754.6785158,0.00043562,120]
[337583005,1725857438960,-500.0,0.000438,10]
[337583006,1725857438970,-516.77869142,0.00043835,2]
[337583007,1725857438980,-1000.0,0.00043836,120]
[337583008,1725857438991,-150.112233,0.000439,7]
[337583009,1725857439003,-160.0,0.00043911,3]
[337583010,1725857439014,-16333.5686837,0.0004399,5]
[337583011,1725857439024,-310.0,0.00043999,30]
[337583012,1725857439034,-10151.22097253,0.00044,30]
[337583013,1725857439044,-4307.12562484,0.00044,120]
[337583014,1725857439055,-887.06768916,0.00044116,2]
[337583015,1725857439066,-549.17339373,0.00044461,2]
[337583016,1725857439078,-46327.85816751,0.00044551,5]
[337583160,1725857446288,-150.0,0.0004364,10]
[337583161,1725857446298,-407.12722995,0.00044551,5]
[337583205,1725857618827,5000.0,0.0003,2]
[337583207,1725857778722,2500.0,0.00040853,120]
[337583210,1725858346596,1015.0,0.00040855,120]
[337583211,1725858426113,-3057.6817012,0.0003572,2]
[337583212,1725858426135,-165.129754,0.00035868,2]
[337583213,1725858426155,-400.0,0.00036142,2]
[337583214,1725858426177,-6185.2926065,0.00036143,2]
[337583215,1725858426201,-165.129754,0.00036803,2]
[337583216,1725858426223,-165.129754,0.00037738,2]
[337583217,1725858426245,-235.0,0.00039756,30]
[337583218,1725858426266,-200.0,0.00040853,30]
[337583219,1725858426287,-200.0,0.00040853,30]
[337583220,1725858426310,-200.0,0.00040853,30]
[337583221,1725858426329,-200.0,0.00040853,30]
[337583222,1725858426350,-200.0,0.00040853,30]
[337583223,1725858426381,-200.0,0.00040853,30]
[337583224,1725858426411,-200.0,0.00040853,30]
[337583225,1725858426442,-200.0,0.00040855,30]
[337583226,1725858426475,-200.0,0.00040855,30]
[337583227,1725858426508,-200.0,0.00040855,30]
[337583228,1725858426543,-164.43,0.00040855,30]
[337583229,1725858426574,-64.88256508,0.00041096,2]
[337583230,1725858444154,-302.56278952,0.00041096,2]
[337583231,1725858444176,-15706.73360466,0.000418,120]
[337583277,1725858638438,-299.0,0.00040855,2]
[337583278,1725858638449,-33293.26639534,0.000418,120]
[337583279,1725858638460,-12772.38471197,0.00042301,120]
[337583280,1725858638469,-706.918206,0.00042655,6]
[337583281,1725858638479,-445.5319703,0.0004274,2]
[337583282,1725858638489,-6157.25187634,0.0004276,2]
[337583283,1725858638499,-12217.19,0.000428,120]
[337583284,1725858638509,-316.06,0.0004284,3]
[337583285,1725858638519,-263.39,0.0004284,3]
[337583286,1725858638528,-234.34334857,0.00042848,31]
[337583287,1725858638540,-500.0,0.00042848,31]
[337583288,1725858638549,-395.33095358,0.00042848,31]
[337583289,1725858638559,-292.44066434,0.00042848,31]
[337583290,1725858638568,-225.59345286,0.00042848,31]
[337583291,1725858638579,-500.0,0.00042848,31]
[337583292,1725858638588,-500.0,0.00042848,31]
[337583293,1725858638598,-500.0,0.00042848,31]
[337583294,1725858638607,-500.0,0.00042848,7]
[337583295,1725858638616,-382.33368346,0.00042848,31]
[337583296,1725858638626,-370.48223036,0.00042848,7]
[337583297,1725858638635,-329485.78071672,0.00042849,5]
[337583298,1725858638647,-17907.25647028,0.00042849,5]
[337583299,1725858638657,-194.78,0.0004286,120]
[337583300,1725858638667,-6300.0,0.000435,60]
[337583301,1725858638676,-5343.56803018,0.00043562,120]
[337583302,1725858638686,-516.77869142,0.00043835,2]
[337583303,1725858638695,-730.988167,0.00043836,120]
[337583304,1725858638704,-500.0,0.00043836,120]
[337583305,1725858638714,-506.288,0.00043836,120]
[337583306,1725858638723,-500.0,0.00043836,120]
[337583307,1725858638733,-503.98155449,0.00043836,120]
[337583308,1725858638742,-500.0,0.00043836,120]
[337583309,1725858638752,-2500.0,0.00044,120]
[337583310,1725858638761,-659.43440086,0.0004417,2]
[337583311,1725858638771,-500.0,0.000442,10]
[337583312,1725858638780,-887.06768916,0.00044209,2]
[337583313,1725858638791,-153.0,0.00044235,2]
[337583314,1725858638800,-152.328802,0.0004426,120]
[337583315,1725858638810,-151.0,0.0004426,120]
[337583316,1725858638819,-435.544916,0.0004426,120]
[337583317,1725858638828,-435.544916,0.0004426,120]
[337583318,1725858638837,-363.637776,0.0004426,30]
[337583319,1725858638847,-363.637776,0.0004426,30]
[337583320,1725858638856,-153.061054,0.0004426,120]
[337583321,1725858638866,-151.0,0.0004426,120]
[337583322,1725858638875,-151.0,0.0004426,120]
[337583323,1725858638884,-151.0,0.0004426,120]
[337583324,1725858638895,-151.0,0.0004426,120]
[337583325,1725858638907,-151.0,0.0004426,120]
[337583326,1725858638920,-320.264707,0.0004426,120]
[337583327,1725858638929,-287.137297,0.0004426,120]
[337583328,1725858638941,-287.137297,0.0004426,120]
[337583329,1725858638951,-320.264707,0.0004426,120]
[337583330,1725858638961,-287.137297,0.0004426,120]
[337583331,1725858638970,-287.137297,0.0004426,120]
[337583332,1725858638979,-151.0,0.0004426,120]
[337583333,1725858638989,-7604.32205378,0.0004427,61]
[337583334,1725858638998,-151.0,0.0004427,120]
[337583335,1725858639007,-435.544916,0.0004427,120]
[337583336,1725858639017,-435.544916,0.0004427,120]
[337583337,1725858639027,-363.637776,0.0004427,30]
[337583338,1725858639037,-363.637776,0.0004427,30]
[337583339,1725858639046,-153.754254,0.0004427,120]
[337583340,1725858639055,-151.0,0.0004427,120]
[337583341,1725858639064,-151.0,0.0004427,120]
[337583342,1725858639073,-151.0,0.0004427,120]
[337583343,1725858639082,-320.264707,0.0004427,120]
[337583344,1725858639091,-287.137297,0.0004427,120]
[337583345,1725858639101,-320.264707,0.0004427,120]
[337583346,1725858639110,-287.137297,0.0004427,120]
[337583347,1725858639119,-151.0,0.0004427,120]
[337583348,1725858639127,-88888.0,0.0004427,120]
[337583349,1725858639136,-155.159803,0.0004437,120]
[337583350,1725858639145,-151.0,0.0004437,120]
[337583351,1725858639154,-151.0,0.0004437,120]
[337583352,1725858639164,-214.503406,0.0004437,120]
[337583353,1725858639173,-214.503406,0.0004437,120]
[337583354,1725858639182,-151.0,0.0004437,120]
[337583355,1725858639191,-151.0,0.0004437,120]
[337583356,1725858639201,-474.882477,0.0004437,120]
[337583357,1725858639210,-474.882477,0.0004437,120]
[337583358,1725858639220,-151.0,0.0004437,120]
[337583359,1725858639229,-154.074996,0.0004437,120]
[337583360,1725858639238,-151.0,0.00044501,120]
[337583361,1725858639247,-151.0,0.00044501,120]
[337583362,1725858639256,-435.544916,0.00044501,120]
[337583363,1725858639266,-435.544916,0.00044501,120]
[337583364,1725858639275,-435.544916,0.00044501,120]
[337583365,1725858639285,-435.544916,0.00044501,120]
[337583366,1725858639295,-363.637776,0.00044501,30]
[337583367,1725858639303,-363.637776,0.00044501,30]
[337583368,1725858639313,-363.637776,0.00044501,30]
[337583369,1725858639322,-363.637776,0.00044501,30]
[337583370,1725858639331,-151.0,0.00044501,120]
[337583371,1725858639341,-151.0,0.00044501,120]
[337583372,1725858639357,-151.0,0.00044501,120]
[337583373,1725858639367,-151.0,0.00044501,120]
[337583374,1725858639377,-151.0,0.00044501,120]
[337583375,1725858639387,-286.19943,0.00044501,120]
[337583376,1725858639397,-320.264707,0.00044501,120]
[337583377,1725858639406,-320.264707,0.00044501,120]
[337583378,1725858639415,-287.137297,0.00044501,120]
[337583379,1725858639426,-287.137297,0.00044501,120]
[337583380,1725858639437,-320.264707,0.00044501,120]
[337583381,1725858639447,-320.264707,0.00044501,120]
[337583382,1725858639457,-287.137297,0.00044501,120]
[337583383,1725858639467,-287.137297,0.00044501,120]
[337583384,1725858639476,-151.0,0.00044501,120]
[337583385,1725858639486,-151.0,0.00044501,120]
[337583386,1725858639495,-152.111515,0.0004451,120]
[337583387,1725858639505,-250.658969,0.0004451,120]
[337583388,1725858639514,-250.658969,0.0004451,120]
[337583389,1725858639524,-151.0,0.0004451,120]
[337583390,1725858639534,-151.0,0.0004451,120]
[337583391,1725858639544,-151.0,0.0004451,120]
[337583392,1725858639553,-214.503406,0.0004451,120]
[337583393,1725858639562,-214.503406,0.0004451,120]
[337583394,1725858639572,-151.0,0.0004451,120]
[337583395,1725858639581,-474.882477,0.0004451,120]
[337583396,1725858639591,-474.882477,0.0004451,120]
[337583397,1725858639601,-151.0,0.0004451,120]
[337583398,1725858639611,-250.658969,0.0004452,120]
[337583399,1725858639620,-250.658969,0.0004452,120]
[337583400,1725858639629,-151.0,0.0004452,120]
[337583401,1725858639639,-151.0,0.0004452,120]
[337583402,1725858639649,-151.0,0.0004452,120]
[337583403,1725858639658,-214.503406,0.0004452,120]
[337583404,1725858639669,-214.503406,0.0004452,120]
[337583405,1725858639678,-151.0,0.0004452,120]
[337583406,1725858639688,-474.882477,0.0004452,120]
[337583407,1725858639697,-474.882477,0.0004452,120]
[337583408,1725858639706,-151.0,0.0004452,120]
[337583409,1725858639716,-151.0,0.0004452,120]
[337583410,1725858639725,-435.544916,0.0004452,120]
[337583411,1725858639735,-435.544916,0.0004452,120]
[337583412,1725858639744,-363.637776,0.0004452,30]
[337583413,1725858639754,-363.637776,0.0004452,30]
[337583414,1725858639763,-151.0,0.0004452,120]
[337583415,1725858639773,-151.0,0.0004452,120]
[337583416,1725858639783,-320.264707,0.0004452,120]
[337583417,1725858639793,-287.137297,0.0004452,120]
[337583418,1725858639803,-320.264707,0.0004452,120]
[337583419,1725858639813,-267.310355,0.0004452,120]
[337583420,1725858639822,-153.120759,0.0004452,120]
[337583421,1725858639832,-267.310355,0.0004452,120]
[337583422,1725858639841,-287.137297,0.0004452,120]
[337583423,1725858639850,-2318.83690055,0.0004452,61]
[337583424,1725858639860,-23244.56568818,0.0004452,2]
[337583429,1725858640342,-822.23024395,0.0004452,2]
[337583452,1725858640575,-10291.63991553,0.0004452,2]
[337583614,1725858643745,-79.38051919,0.0004452,2]
[337583632,1725858646591,-4419.16748582,0.0004452,2]
[337583633,1725858714039,1684.4080677,0.00035896,2]
[337583638,1725858941713,3000.0,0.0003002,2]
[337583639,1725858988189,10000.0,0.00028,120]
[337583640,1725859040507,350.0,0.0003,4]
[337583644,1725859197019,350.0,0.0003002,4]
[337583645,1725859221918,336.04384766,0.0003,2]
[337583648,1725859366983,-300.0,0.0004,30]
[337583649,1725859367008,-2700.0,0.0004085,30]
[337583667,1725859531142,-1068.43390394,0.00037,10]
[337583668,1725859531165,-3823.721174,0.00039241,2]
[337583669,1725859531186,-7300.0,0.0004085,30]
[337583670,1725859531208,-185.66142899,0.00041096,2]
[337583671,1725859531230,-160.0,0.00041688,3]
[337583672,1725859531252,-160.0,0.00042132,4]
[337583673,1725859531272,-160.0,0.00042576,5]
[337583674,1725859531294,-160.0,0.00043021,6]
[337583675,1725859531315,-160.0,0.00043465,7]
[337583676,1725859531336,-903.69272682,0.00043562,120]
[337583677,1725859531359,-388.39033494,0.00043735,2]
[337583678,1725859531380,-150.112233,0.000438,6]
[337583679,1725859531401,-282.7,0.00043805,3]
[337583680,1725859531424,-235.59,0.00043805,3]
[337583681,1725859531445,-276.73166751,0.00043814,31]
[337583682,1725859531466,-164.040344,0.00043814,31]
[337583683,1725859531489,-500.0,0.00043814,31]
[337583684,1725859531511,-204.70846504,0.00043814,31]
[337583685,1725859531534,-500.0,0.00043814,31]
[337583686,1725859531558,-207.915417,0.00043814,31]
[337583687,1725859531583,-56711.96896097,0.00043815,5]
[337583690,1725859592087,-654.47622846,0.00043735,2]
[337583691,1725859592111,-1270.92604994,0.00043815,5]
[337583693,1725859654104,-196.32,0.00043805,3]
[337583694,1725859654134,-87052.31431772,0.00043815,5]
[337583695,1725859691687,151.0,0.0003,120]
[337583713,1725859714949,187.03717694,0.000191,12]
[337583719,1725859757096,-1464.25488752,0.0003212,10]
[337583788,1725859838574,-27659.4081012,0.0003212,10]
[337583789,1725859838584,-641.82724953,0.00038,10]
[337583790,1725859838594,-151.0,0.0004,120]
[337583791,1725859838603,-2217.7602858,0.0004,30]
[337583792,1725859838612,-229.94180979,0.00040855,10]
[337583793,1725859838624,-1045.0281488,0.00040855,10]
[337583794,1725859838635,-200.0,0.00040855,10]
[337583795,1725859838647,-175.13341855,0.00040855,2]
[337583796,1725859838659,-999.999999,0.00040865,30]
[337583797,1725859838669,-199.85262892,0.0004089,30]
[337583798,1725859838678,-615.22327814,0.00043625,2]
[337583799,1725859838691,-281.05910888,0.00043625,2]
[337583800,1725859838700,-159.98854045,0.00043705,30]
[337583801,1725859839095,-18.91145955,0.00043705,30]
[337583802,1725859839104,-178.9,0.00043705,30]
[337583803,1725859839113,-715.65,0.00043705,30]
[337583804,1725859839123,-346.24,0.00043705,3]
[337583805,1725859839133,-257.62,0.00043715,30]
[337583806,1725859839144,-214.69,0.00043715,30]
[337583807,1725859839154,-12570.13254258,0.00043715,5]
[337583827,1725859840635,-9694.29270197,0.00043715,5]
[337583828,1725859840647,-1570.88197222,0.00043715,5]
[337583888,1725859942516,151.0,0.0003,120]
[337583893,1725860380355,2017.54,0.0004085,120]
[337583905,1725860682752,350.0,0.00028,30]
[337583907,1725860749141,-14684.8075145,0.00038018,2]
[337583908,1725860749165,-176.4791115,0.0003891,120]
[337583909,1725860749189,-182.6315826,0.00039045,2]
[337583910,1725860749212,-151.0,0.0004,120]
[337583911,1725860749234,-400.0,0.0004,120]
[337583912,1725860749256,-475.0,0.000408,120]
[337583913,1725860749278,-999.999999,0.0004085,30]
[337583914,1725860749299,-10000.0,0.0004085,30]
[337583915,1725860749322,-160.0,0.00041777,3]
[337583916,1725860749346,-160.0,0.0004231,4]
[337583917,1725860749370,-160.0,0.00042843,5]
[337583918,1725860749393,-308.2236468,0.00043014,2]
[337583919,1725860749415,-152.11913654,0.00043268,2]
[337583920,1725860749440,-160.0,0.00043376,6]
[337583921,1725860749463,-11527.46939233,0.00043397,2]
[337583922,1725860749485,-211.83385506,0.00043492,2]
[337583923,1725860749514,-2826.65807954,0.0004352,28]
[337583924,1725860749547,-242.14671907,0.00043524,2]
[337583925,1725860749569,-242.14671903,0.00043546,2]
[337583926,1725860749592,-153.0,0.00043562,2]
[337583927,1725860749613,-242.14671903,0.00043569,2]
[337583928,1725860749636,-242.14671903,0.00043591,2]
[337583929,1725860749660,-177.72,0.00043595,30]
[337583930,1725860749681,-888.62,0.00043595,30]
[337583931,1725860749704,-500.0,0.00043604,31]
[337583932,1725860749736,-252.50425216,0.00043604,31]
[337583933,1725860749761,-505.28478187,0.00043604,31]
[337583934,1725860749786,-499.86012,0.00043604,31]
[337583935,1725860749810,-2318.83690055,0.00043605,61]
[337583936,1725860749833,-37521.92854844,0.00043605,5]
[337583943,1725860793110,-219.44533519,0.0004085,30]
[337583946,1725860828186,-4319.2503627,0.0004085,30]
[337583999,1725861031661,-300.0,0.000408,30]
[337584001,1725861031670,-426.20672113,0.000408,30]
[337584027,1725861038009,-1446.43327887,0.000408,30]
[337584028,1725861038019,-10000.0,0.000408,30]
[337584029,1725861038029,-10000.0,0.000408,60]
[337584030,1725861038038,-5461.30430211,0.0004083,30]
[337584031,1725861038047,-153.0,0.00043014,2]
[337584032,1725861038057,-208.2062936,0.00043014,2]
[337584033,1725861038067,-242.14671903,0.00043486,2]
[337584034,1725861038077,-615.22327814,0.00043505,2]
[337584035,1725861038086,-639.28431896,0.00043515,2]
[337584036,1725861038096,-288.53,0.00043574,3]
[337584037,1725861038107,-19126.3005239,0.00043584,2]
[337584049,1725861039806,-101213.6068661,0.00043584,2]
[337584050,1725861039815,-500.0,0.00043585,31]
[337584051,1725861039825,-176.75297652,0.00043585,31]
[337584052,1725861039833,-203.69934731,0.00043585,31]
[337584053,1725861039842,-1159.41845027,0.00043585,61]
[337584054,1725861039852,-328011.532803,0.00043586,5]
[337584055,1725861039861,-80831.29192294,0.00043595,5]
[337584089,1725861042682,-24.38281502,0.00043595,5]
[337584278,1725861045864,-240.44,0.00043586,3]
[337584280,1725861045874,-1147.20846274,0.00043595,5]
[337584282,1725861045885,-3802.16102689,0.00043595,61]
[337584285,1725861045896,-91522.98881052,0.00043595,5]
[337584386,1725861257683,9406.82,0.00028,10]
[337584391,1725861933170,-161.28119335,0.00041096,2]
[337584392,1725861933192,-1000.0,0.00042,120]
[337584393,1725861933215,-153.0,0.00043014,2]
[337584394,1725861933238,-153.0,0.00043014,2]
[337584395,1725861933260,-153.0,0.00043014,2]
[337584396,1725861933284,-153.0,0.00043014,2]
[337584397,1725861933306,-153.0,0.00043014,2]
[337584398,1725861933330,-153.0,0.00043014,2]
[337584399,1725861933352,-153.0,0.00043014,2]
[337584400,1725861933377,-153.0,0.00043014,2]
[337584401,1725861933399,-500.0,0.000435,120]
[337584402,1725861933422,-500.0,0.000435,120]
[337584403,1725861933444,-1000.0,0.00043505,2]
[337584404,1725861933468,-6658.33789463,0.00043505,120]
[337584406,1725862046100,-1000.0,0.00043,120]
[337584407,1725862046123,-208.2062936,0.00043014,2]
[337584408,1725862046144,-500.0,0.000435,5]
[337584409,1725862046166,-82229.66210537,0.00043505,120]
[337584410,1725862046187,-185.31265116,0.00043562,120]
[337584411,1725862046209,-176.75297652,0.00043585,31]
[337584412,1725862046231,-500.0,0.00043585,31]
[337584413,1725862046254,-203.69934731,0.00043585,31]
[337584414,1725862046278,-149423.14952089,0.00043586,5]